[Event "Bangabandhu Premier Div League 2023-24"]
[Site "Dhaka"]
[Date "2024.02.06"]
[Round "6.6"]
[White "Ankit Ray"]
[Black "Chowdhury, Sohel"]
[Result "1-0"]
[ECO "A11"]
[WhiteElo "1912"]
[BlackElo "1956"]
[Annotator "RC"]
[PlyCount "131"]
[EventDate "2024.02.01"]
[EventCountry "BAN"]
[SourceTitle "playchess.com"]
[Source "ChessBase"]
[SourceQuality "1"]
[TimeControl "40/5400+30:1800+30"]

1. Nf3 {[%emt 0:00:14]} d5 {[%emt 0:00:50]} 2. g3 {[%emt 0:00:11]} Nf6 {[%emt 0:02:24]} 3. Bg2 {[%emt 0:00:05]} Bf5 {[%emt 0:01:56]} 4. O-O {[%emt 0:00:05]} c6 {[%emt 0:00:23]} 5. d3 {[%emt 0:00:02]} h6 {[%emt 0:00:13]} 6. c4 {[%emt 0:00:15]} e6 {[%emt 0:00:10]} 7. cxd5 {[%emt 0:00:56]} exd5 {[%emt 0:00:18]} 8. Nd4 {[%emt 0:05:17]} Bg4 {[%emt 0:07:12]} 9. h3 {[%emt 0:08:11]} Bd7 {[%emt 0:18:32]} 10. e4 {[%emt 0:01:58]} dxe4 {[%emt 0:01:24]} 11. dxe4 {[%emt 0:00:06]} Be7 {[%emt 0:00:09]} 12. Nc3 {[%emt 0:18:32]} O-O {[%emt 0:02:14]} 13. e5 {[%emt 0:07:08]} Nh7 {[%emt 0:01:18]} 14. Kh2 {[%emt 0:00:22]} Na6 {[%emt 0:05:51]} 15. Be3 {[%emt 0:04:00]} Re8 {[%emt 0:03:28]} 16. f4 {[%emt 0:10:00]} Bf8 {[%emt 0:03:46]} 17. Qe2 {[%emt 0:01:41]} Nc7 {[%emt 0:04:55]} 18. Rad1 {[%emt 0:02:02]} Qc8 {[%emt 0:02:07]} 19. Qc2 {[%emt 0:06:14]} Nf6 {[%emt 0:09:07]} 20. Nb3 {[%emt 0:04:31]} Bf5 {[%emt 0:03:29]} 21. Qd2 {[%emt 0:00:32]} Nfd5 {[%emt 0:31:14]} 22. Bc5 {[%emt 0:06:14]} Nxc3 {[%emt 0:00:00]} 23. Qxc3 {[%emt 0:00:48]} Nd5 {[%emt 0:00:00]} 24. Bxd5 {[%emt 0:11:22]} cxd5 {[%emt 0:00:00]} 25. Bxf8 {[%emt 0:00:07]} Rxf8 {[%emt 0:00:00]} 26. Qxc8 {[%emt 0:00:09]} Raxc8 {[%emt 0:00:00]} 27. Nd4 {[%emt 0:00:26]} Be4 {[%emt 0:00:00]} 28. Rd2 {[%emt 0:02:38]} a6 {[%emt 0:00:00]} 29. g4 {[%emt 0:00:38]} Rfe8 {[%emt 0:00:00]} 30. Nf5 {[%emt 0:01:04]} Rc6 {[%emt 0:04:30]} 31. Nd6 {[%emt 0:04:10]} Re7 {[%emt 0:00:00]} 32. Re1 {[%emt 0:01:22]} g5 {[%emt 0:00:00]} 33. Nxe4 {[%emt 0:02:09]} dxe4 {[%emt 0:00:00]} 34. fxg5 {[%emt 0:01:53]} hxg5 {[%emt 0:00:00]} 35. Rxe4 {[%emt 0:00:07]} f6 {[%emt 0:00:00]} 36. Rf2 {[%emt 0:01:44]} Rxe5 {[%emt 0:01:47]} 37. Rxe5 {[%emt 0:00:04]} fxe5 {[%emt 0:00:14]} 38. Kg3 {[%emt 0:00:05]} Kg7 {[%emt 0:01:16]} 39. Rf5 {[%emt 0:00:05]} Rc2 {[%emt 0:00:08]} 40. Rxe5 {[%emt 0:00:13]} Kg6 {[%emt 0:01:35]} 41. Re6+ {[%emt 0:30:07]} Kf7 {[%emt 0:29:59]} 42. Rb6 {[%emt 0:00:09]} Rc7 {[%emt 0:00:00]} 43. Kf3 {[%emt 0:00:00]} Re7 {[%emt 0:00:00]} 44. Rb3 {[%emt 0:00:00]} Kf6 {[%emt 0:00:00]} 45. Re3 {[%emt 0:00:00]} Rc7 {[%emt 0:00:00]} 46. Ke4 {[%emt 0:00:00]} Rc2 {[%emt 0:00:00]} 47. Rb3 {[%emt 0:00:00]} b5 {[%emt 0:00:00]} 48. Kd5 {[%emt 0:00:00]} Rd2+ {[%emt 0:00:00]} 49. Kc6 {[%emt 0:00:00]} Ke5 {[%emt 0:00:00]} 50. Kb7 {[%emt 0:00:00]} Rd6 {[%emt 0:00:00]} 51. Ra3 {[%emt 0:00:00]} Kf4 {[%emt 0:00:00]} 52. Rxa6 {[%emt 0:00:00]} Rd2 {[%emt 0:00:00]} 53. b4 {[%emt 0:00:00]} Rb2 {[%emt 0:00:00]} 54. a3 {[%emt 0:00:00]} Rb3 {[%emt 0:00:00]} 55. Rh6 {[%emt 0:00:00]} Rxa3 {[%emt 0:00:00]} 56. Kb6 {[%emt 0:00:00]} Kg3 {[%emt 0:00:00]} 57. Kxb5 {[%emt 0:00:00]} Kg2 {[%emt 0:00:00]} 58. Rh5 {[%emt 0:00:00]} Rxh3 {[%emt 0:00:00]} 59. Rxh3 {[%emt 0:00:00]} Kxh3 {[%emt 0:00:00]} 60. Ka6 {[%emt 0:00:00]} Kxg4 {[%emt 0:10:01]} 61. b5 {[%emt 0:00:00]} Kf3 {[%emt 0:00:00]} 62. b6 {[%emt 0:00:00]} g4 {[%emt 0:00:00]} 63. b7 {[%emt 0:00:00]} g3 {[%emt 0:00:00]} 64. b8=Q {[%emt 0:14:34]} g2 {[%emt 0:00:00]} 65. Qb6 {[%emt 0:00:00]} Kg3 {[%emt 0:00:00]} 66. Qg1 {[%emt 0:00:00]} 1-0

[Event "Bangabandhu Premier Div League 2023-24"]
[Site "Dhaka"]
[Date "2024.02.06"]
[Round "6.6"]
[White "Mrittika Mallick"]
[Black "Ahmed, Sheikh Nasir"]
[Result "1-0"]
[ECO "B40"]
[WhiteElo "1859"]
[BlackElo "2182"]
[Annotator "TA"]
[PlyCount "77"]
[EventDate "2024.02.01"]
[EventCountry "BAN"]
[SourceTitle "playchess.com"]
[Source "ChessBase"]
[SourceQuality "1"]
[TimeControl "40/5400+30:1800+30"]

{[%evp 16,76,7,-14,0,0,9,-7,0,-7,0,-27,0,-9,-7,-36,0,12,10,9,4,0,6,-3,116,9,25,0,0,0,16,0,155,0,0,0,74,77,129,131,129,120,183,183,199,199,341,338,373,369,874,871,922,810,940,929,738,366,757,790,29975,29973,29991]} 1. e4 {[%emt 0:00:02]} c5 {[%emt 0:00:11]} 2. Nf3 {[%emt 0:01:17]} e6 {[%emt 0:00:09]} 3. d4 {[%emt 0:00:05]} cxd4 {[%emt 0:00:06]} 4. Nxd4 {[%emt 0:00:05]} Nc6 {[%emt 0:00:09]} 5. Nxc6 {[%emt 0:00:16]} bxc6 {[%emt 0:00:22]} 6. Bd3 {[%emt 0:00:11]} Nf6 {[%emt 0:04:22]} 7. O-O {[%emt 0:00:36]} d5 {[%emt 0:00:41]} 8. Nc3 {[%emt 0:01:09]} Be7 {[%emt 0:02:08]} 9. Qe2 {[%emt 0:01:07]} O-O {[%emt 0:02:03]} 10. b3 {[%emt 0:03:58]} Re8 {[%emt 0:09:40]} 11. Bb2 {[%emt 0:04:38]} Bf8 {[%emt 0:05:17] The position is equal.} 12. Rad1 {[%emt 0:02:54]} Qc7 {[%emt 0:05:53]} 13. f4 {[%emt 0:05:34]} Bb7 {[%emt 0:08:04]} 14. Kh1 {[%emt 1:15:38]} (14. Rf3 $5) 14... Rad8 {[%emt 0:13:03]} 15. Rf3 {[%emt 0:00:00]} g6 {[%emt 0:04:49]} (15... d4 $15 {should be considered.} 16. Nb1 c5) 16. Rdf1 $11 {[%emt 0:00:00][%cal Oc3d5]} Bg7 {[%emt 0:41:33] aiming for ...Nxe4.} 17. e5 {[%emt 0:00:00]} Nd7 {[%emt 0:00:00]} 18. Qf2 {[%emt 0:00:00]} Qa5 {[%emt 0:01:00]} 19. Rh3 {[%emt 0:00:00]} a6 {[%emt 0:00:30] [#]} (19... Nc5 $11 {remains equal.}) 20. Qh4 {[%emt 0:00:00]} (20. Na4 $1 $16) 20... Nf8 {[%emt 0:00:00]} 21. Ne2 {[%emt 0:00:00]} c5 {[%emt 0:00:00]} 22. Bc3 {[%emt 0:00:00]} Qc7 {[%emt 0:00:00] Hoping for ...c4.} 23. Ng3 {[%emt 0:00:00][%cal Og3h5]} Rc8 $2 {[%emt 0:00:00] [#]} (23... h6 $11) 24. Re1 $2 {[%emt 0:05:00] White is much more active.} (24. Nh5 $1 $16 {[%cal Rh5f6] Nf6+ would kill now.} gxh5 25. Qxh5) 24... Qe7 {[%emt 0:00:00]} 25. Qg4 {[%emt 0:00:00]} d4 {[%emt 0:00:00]} (25... Bc6 $11 {keeps the balance.}) 26. Bd2 $16 {[%emt 0:01:00]} f5 {[%emt 0:00:00]} (26... Nd7 $142) 27. exf6 {[%emt 0:00:00]} Qxf6 {[%emt 0:00:00]} 28. Ne4 {[%emt 0:01:00]} Bxe4 {[%emt 0:00:00]} (28... Qe7 $16 29. a4 c4 30. Bxc4 (30. bxc4 Qc7 $16) 30... Bd5) 29. Rxe4 $18 {[%emt 0:00:00]} (29. Bxe4 $6 c4 $16) 29... Rc6 {[%emt 0:05:00]} 30. Qe2 {[%emt 0:00:00]} e5 {[%emt 0:00:00]} (30... Rd6 $142 31. a4 (31. Bxa6 Ra8 $16) 31... Ra8) 31. fxe5 {[%emt 0:00:00]} Rxe5 {[%emt 0:00:00]} 32. Rf3 {[%emt 0:02:00]} Qd6 $2 {[%emt 0:00:00]} (32... Rf5 33. Re8 Rxf3 34. Bc4+ (34. Qxf3 Qxf3 35. gxf3 Kf7 $18) (34. gxf3 h6 $18) 34... Kh8) 33. Bc4+ {[%emt 0:00:00]} Ne6 {[%emt 0:00:00]} 34. Bf4 {[%emt 0:00:00]} Rxe4 {[%emt 0:00:00]} 35. Qxe4 {[%emt 0:00:00]} (35. Bxd6 $2 {perishes.} Rxe2 36. Bxe2 Rxd6 $19) 35... Qd7 {[%emt 0:00:00]} 36. Qd5 {[%emt 0:00:00]} (36. Be5 $142 {White threatens Bxg7 and mate.} Bh6 37. Qh4) 36... Qc8 $2 {[%emt 0:00:00] Black is weak on the light squares} (36... Qxd5 37. Bxd5 Rb6) 37. Be5 {[%emt 0:00:00] This pair of bishops is nice.} Kh8 {[%emt 0:00:26]} 38. Bxg7+ {[%emt 0:00:00]} Nxg7 {[%emt 0:00:03] [#]} 39. Qxc6 $3 {[%emt 0:00:00][%mdl 512] Weighted Error Value: White=0.33/Black=0.65.  Mistake:       	White=2     	Black=8      Inaccurate:     	White=2     	Black=2      OK:         	White=9     	Black=6      Best:        	White=2     	---} 1-0

[Event "Bangabandhu Premier Div League 2023-24"]
[Site "Dhaka"]
[Date "2024.02.06"]
[Round "6.7"]
[White "Sajidul, Haque"]
[Black "Tashriq Saihan, Shan"]
[Result "1-0"]
[ECO "B13"]
[WhiteElo "1922"]
[BlackElo "1772"]
[Annotator "NA RC"]
[PlyCount "107"]
[EventDate "2024.02.01"]
[EventCountry "BAN"]
[SourceTitle "playchess.com"]
[Source "ChessBase"]
[SourceQuality "1"]
[TimeControl "40/5400+30:1800+30"]

1. d4 {[%emt 0:00:53]} Nf6 {[%emt 0:00:12]} 2. Nc3 {[%emt 0:00:11]} d5 {[%emt 0:00:09]} 3. Bf4 {[%emt 0:00:06]} c5 {[%emt 0:01:27]} 4. e3 {[%emt 0:00:23]} cxd4 {[%emt 0:02:14]} 5. exd4 {[%emt 0:00:09]} a6 {[%emt 0:03:51]} 6. Nf3 {[%emt 0:03:41]} Bg4 {[%emt 0:01:08]} 7. Be2 {[%emt 0:01:46]} Bxf3 {[%emt 0:03:19]} 8. Bxf3 {[%emt 0:00:39]} e6 {[%emt 0:00:23]} 9. O-O {[%emt 0:03:45]} Bd6 {[%emt 0:00:49]} 10. Ne2 {[%emt 0:00:40]} O-O {[%emt 0:01:20]} 11. b3 {[%emt 0:04:50]} Bxf4 {[%emt 0:01:15]} 12. Nxf4 {[%emt 0:00:02]} Qd6 {[%emt 0:00:30]} 13. Ne2 {[%emt 0:00:57]} Nc6 {[%emt 0:05:43]} 14. Qd2 {[%emt 0:04:18]} Rfe8 {[%emt 0:05:04]} 15. Rad1 {[%emt 0:01:19]} b5 {[%emt 0:05:13]} 16. c3 {[%emt 0:03:49]} Rac8 {[%emt 0:02:08]} 17. h3 {[%emt 0:03:06]} Ne7 {[%emt 0:00:54]} 18. a4 {[%emt 0:09:52]} bxa4 {[%emt 0:01:21]} 19. bxa4 {[%emt 0:04:49]} Rc4 {[%emt 0:01:38]} 20. a5 {[%emt 0:03:41]} Ng6 {[%emt 0:05:26]} 21. Rb1 {[%emt 0:03:38]} Rb8 {[%emt 0:01:43]} 22. g3 {[%emt 0:10:27]} h6 {[%emt 0:03:05]} 23. Qa2 {[%emt 0:03:26]} Nd7 {[%emt 0:06:08]} 24. Rxb8+ {[%emt 0:07:29]} Qxb8 {[%emt 0:00:37]} 25. Rb1 {[%emt 0:00:03]} Qc7 {[%emt 0:00:32]} 26. Kg2 {[%emt 0:01:49]} Qc6 {[%emt 0:06:52]} 27. Rb4 {[%emt 0:02:40]} Rxb4 {[%emt 0:11:46]} 28. cxb4 {[%emt 0:00:02]} Ne7 {[%emt 0:01:18]} 29. Qb3 {[%emt 0:08:02]} Nf5 {[%emt 0:01:20]} 30. h4 {[%emt 0:02:02]} Nb8 {[%emt 0:07:17]} 31. h5 {[%emt 0:06:55]} Nd6 {[%emt 0:04:33]} 32. g4 {[%emt 0:01:37]} Nb5 {[%emt 0:02:49]} 33. Qe3 {[%emt 0:03:13]} Qc4 {[%emt 0:01:38]} 34. g5 {[%emt 0:00:40]} hxg5 {[%emt 0:06:45]} 35. Qxg5 {[%emt 0:00:01]} Qxb4 {[%emt 0:01:12]} 36. Nf4 {[%emt 0:03:38]} Nxd4 {[%emt 0:02:31]} 37. h6 {[%emt 0:00:43]} Nf5 {[%emt 0:01:43]} 38. Qd8+ {[%emt 0:00:50]} Kh7 {[%emt 0:00:21]} 39. hxg7 {[%emt 0:01:39]} Nxg7 {[%emt 0:00:34]} 40. Nh3 {[%emt 0:01:32]} Nc6 {[%emt 0:01:50]} 41. Qf6 {[%emt 0:02:26]} Ne7 {[%emt 0:21:08]} 42. Ng5+ {[%emt 0:02:03]} Kh8 {[%emt 0:00:34]} 43. Qh6+ {[%emt 0:00:27]} Kg8 {[%emt 0:00:36]} 44. Qh7+ {[%emt 0:00:02]} Kf8 {[%emt 0:00:26]} 45. Qh8+ {[%emt 0:00:02]} Ng8 {[%emt 0:00:19]} 46. Nh7+ {[%emt 0:00:03]} Ke7 {[%emt 0:00:25]} 47. Qxg7 {[%emt 0:00:06]} Qxa5 {[%emt 0:01:08]} 48. Qf8+ {[%emt 0:00:26]} Kd7 {[%emt 0:00:14]} 49. Qxg8 {[%emt 0:00:03]} Qd8 {[%emt 0:00:58]} 50. Qxf7+ {[%emt 0:00:20]} Qe7 {[%emt 0:00:05]} 51. Nf8+ {[%emt 0:01:44]} Kd6 {[%emt 0:00:28]} 52. Qf4+ {[%emt 0:00:29]} Kc6 {[%emt 0:00:59]} 53. Ng6 {[%emt 0:02:20]} Qe8 {[%emt 0:00:58]} 54. Qa4+ {[%emt 0:00:09]} 1-0

[Event "Bangabandhu Premier Div League 2023-24"]
[Site "Dhaka"]
[Date "2024.02.06"]
[Round "6.8"]
[White "Muhimenul, Islam"]
[Black "Suvradeepta, Das"]
[Result "0-1"]
[ECO "A35"]
[WhiteElo "1970"]
[BlackElo "2141"]
[Annotator "RC"]
[PlyCount "210"]
[EventDate "2024.02.01"]
[EventCountry "BAN"]
[SourceTitle "playchess.com"]
[Source "ChessBase"]
[SourceQuality "1"]
[TimeControl "40/5400+30:1800+30"]

1. c4 {[%emt 0:00:30]} c5 {[%emt 0:02:02]} 2. Nf3 {[%emt 0:00:39]} Nc6 {[%emt 0:00:30]} 3. Nc3 {[%emt 0:00:45]} e5 {[%emt 0:00:17]} 4. g3 {[%emt 0:02:25]} Nge7 {[%emt 0:00:12]} 5. Bg2 {[%emt 0:01:53]} d6 {[%emt 0:00:09]} 6. d3 {[%emt 0:02:12]} g6 {[%emt 0:00:11]} 7. Bg5 {[%emt 0:00:49]} Bg7 {[%emt 0:01:22]} 8. Ne4 {[%emt 0:05:07]} f5 {[%emt 0:06:22]} 9. Nf6+ {[%emt 0:01:19]} Kf7 {[%emt 0:00:02]} 10. Nd5 {[%emt 0:00:29]} h6 {[%emt 0:00:28]} 11. Bxe7 {[%emt 0:11:13]} Nxe7 {[%emt 0:00:06]} 12. Nd2 {[%emt 0:03:19]} Kg8 {[%emt 0:03:38]} 13. Rb1 {[%emt 0:04:22]} a5 {[%emt 0:03:33]} 14. a4 {[%emt 0:05:13]} Nc6 {[%emt 0:01:13]} 15. O-O {[%emt 0:07:11]} Kh7 {[%emt 0:01:14]} 16. e3 {[%emt 0:02:26]} Re8 {[%emt 0:03:49]} 17. Re1 {[%emt 0:02:37]} Be6 {[%emt 0:04:44]} 18. b3 {[%emt 0:08:39]} Rb8 {[%emt 0:04:03]} 19. Qe2 {[%emt 0:05:07]} Qd7 {[%emt 0:01:07]} 20. Rbc1 {[%emt 0:06:39]} Qf7 {[%emt 0:00:28]} 21. Nb1 {[%emt 0:03:04]} Rbd8 {[%emt 0:05:28]} 22. Nbc3 {[%emt 0:01:03]} Rf8 {[%emt 0:08:09]} 23. Qd2 {[%emt 0:04:54]} h5 {[%emt 0:01:28]} 24. h4 {[%emt 0:02:11]} Bh6 {[%emt 0:00:21]} 25. f4 {[%emt 0:01:10]} Bg7 {[%emt 0:04:02]} 26. Kh2 {[%emt 0:01:54]} Nb4 {[%emt 0:15:10]} 27. Re2 {[%emt 0:04:33]} Rfe8 {[%emt 0:05:44]} 28. Rd1 {[%emt 0:03:39]} Rf8 {[%emt 0:05:48]} 29. Rf1 {[%emt 0:03:56]} Nc6 {[%emt 0:05:32]} 30. Rd1 {[%emt 0:00:47]} Qd7 {[%emt 0:02:37]} 31. Nb6 {[%emt 0:00:43]} Qc7 {[%emt 0:00:46]} 32. Nbd5 {[%emt 0:00:42]} Qb8 {[%emt 0:00:43]} 33. Bf3 {[%emt 0:00:35]} Rde8 {[%emt 0:01:13]} 34. Bg2 {[%emt 0:00:55]} Qd8 {[%emt 0:01:12]} 35. Rde1 {[%emt 0:01:39]} Bg8 {[%emt 0:01:23]} 36. Kh3 {[%emt 0:00:27]} Be6 {[%emt 0:03:45]} 37. Kh2 {[%emt 0:00:38]} Bc8 {[%emt 0:00:01]} 38. Nb5 {[%emt 0:00:22]} Rf7 {[%emt 0:01:02]} 39. Bh1 {[%emt 0:00:54]} Be6 {[%emt 0:01:48]} 40. Nbc3 {[%emt 0:00:53]} Qb8 {[%emt 0:05:43]} 41. Bg2 {[%emt 0:31:03]} Rff8 {[%emt 0:30:58]} 42. Rd1 {[%emt 0:00:00]} Bg8 {[%emt 0:00:00]} 43. Rde1 {[%emt 0:00:00]} Bf7 {[%emt 0:00:00]} 44. Kh3 {[%emt 0:00:00]} Bg8 {[%emt 0:00:00]} 45. Nb6 {[%emt 0:00:00]} Qd8 {[%emt 0:00:00]} 46. Nbd5 {[%emt 0:00:00]} Bh6 {[%emt 0:00:00]} 47. Qd1 {[%emt 0:00:00]} Bg7 {[%emt 0:00:00]} 48. Qd2 {[%emt 0:00:00]} Be6 {[%emt 0:00:00]} 49. Kh2 {[%emt 0:00:00]} Kh8 {[%emt 0:00:00]} 50. Bf3 {[%emt 0:00:00]} Kg8 {[%emt 0:00:00]} 51. Nb5 {[%emt 0:00:00]} Rf7 {[%emt 0:00:00]} 52. Qd1 {[%emt 0:00:00]} Kh7 {[%emt 0:00:00]} 53. Qd2 {[%emt 0:01:59]} Bc8 {[%emt 0:00:01]} 54. Nbc3 {[%emt 0:01:19]} Rff8 {[%emt 0:01:06]} 55. Nb5 {[%emt 0:00:42]} Rf7 {[%emt 0:00:20]} 56. Nbc3 {[%emt 0:00:45]} Nb4 {[%emt 0:02:19]} 57. Bg2 {[%emt 0:01:24]} Rff8 {[%emt 0:00:14]} 58. Bf3 {[%emt 0:01:14]} Nc6 {[%emt 0:01:46]} 59. Bg2 {[%emt 0:00:21]} exf4 {[%emt 0:00:53]} 60. Nxf4 {[%emt 0:00:45]} Ne5 {[%emt 0:00:42]} 61. Ncd5 {[%emt 0:00:41]} Ng4+ {[%emt 0:00:21]} 62. Kh1 {[%emt 0:01:24]} Be5 {[%emt 0:00:51]} 63. d4 {[%emt 0:00:54]} Bg7 {[%emt 0:00:21]} 64. Bf3 {[%emt 0:00:43]} Bh6 {[%emt 0:00:54]} 65. Bxg4 {[%emt 0:00:53]} fxg4 {[%emt 0:00:51]} 66. dxc5 {[%emt 0:00:23]} dxc5 {[%emt 0:01:43]} 67. Rd1 {[%emt 0:00:34]} Bf5 {[%emt 0:00:23]} 68. Kh2 {[%emt 0:00:48]} Be4 {[%emt 0:02:13]} 69. Rde1 {[%emt 0:00:31]} Bf3 {[%emt 0:00:22]} 70. Rf2 {[%emt 0:00:15]} Bg7 {[%emt 0:00:53]} 71. Kg1 {[%emt 0:00:42]} Be5 {[%emt 0:00:18]} 72. Kh2 {[%emt 0:00:34]} b6 {[%emt 0:00:27]} 73. Qd3 {[%emt 0:00:17]} Rf5 {[%emt 0:00:38]} 74. Rd2 {[%emt 0:00:42]} Kh6 {[%emt 0:00:27]} 75. Kg1 {[%emt 0:00:33]} Qd6 {[%emt 0:00:22]} 76. Rf1 {[%emt 0:00:33]} Rb8 {[%emt 0:00:40]} 77. Kh2 {[%emt 0:00:32]} Qf8 {[%emt 0:00:42]} 78. Rdf2 {[%emt 0:00:25]} Qg7 {[%emt 0:00:27]} 79. Qd2 {[%emt 0:00:23]} Be4 {[%emt 0:00:27]} 80. Kg1 {[%emt 0:00:38]} Rd8 {[%emt 0:00:06]} 81. Ne6 {[%emt 0:00:15]} Qd7 {[%emt 0:01:08]} 82. Nxd8 {[%emt 0:00:09]} Qxd8 {[%emt 0:00:01]} 83. Nf4 {[%emt 0:00:13]} Qf6 {[%emt 0:00:42]} 84. Rd1 {[%emt 0:00:47]} Bf3 {[%emt 0:00:19]} 85. Rdf1 {[%emt 0:00:35]} Be4 {[%emt 0:00:34]} 86. Qd7 {[%emt 0:00:36]} Bc6 {[%emt 0:00:43]} 87. Qd3 {[%emt 0:00:48]} Qh8 {[%emt 0:00:45]} 88. Nxg6 {[%emt 0:00:29]} Rxf2 {[%emt 0:01:08]} 89. Nxh8 {[%emt 0:00:15]} Rg2+ {[%emt 0:00:00]} 90. Kh1 {[%emt 0:00:43]} Rxg3+ {[%emt 0:00:00]} 91. e4 {[%emt 0:00:36]} Rxd3 {[%emt 0:00:00]} 92. Nf7+ {[%emt 0:00:10]} Kg7 {[%emt 0:00:06]} 93. Nxe5 {[%emt 0:00:12]} Bxe4+ {[%emt 0:00:02]} 94. Kg1 {[%emt 0:00:31]} Rg3+ {[%emt 0:00:10]} 95. Kf2 {[%emt 0:00:43]} Rxb3 {[%emt 0:00:31]} 96. Ke2 {[%emt 0:00:40]} Bg6 {[%emt 0:02:13]} 97. Rd1 {[%emt 0:00:48]} Kf6 {[%emt 0:00:40]} 98. Rd5 {[%emt 0:00:37]} Be4 {[%emt 0:00:40]} 99. Nd7+ {[%emt 0:00:11]} Ke7 {[%emt 0:00:20]} 100. Re5+ {[%emt 0:00:34]} Kxd7 {[%emt 0:00:01]} 101. Rxe4 {[%emt 0:00:07]} Rh3 {[%emt 0:00:11]} 102. Re5 {[%emt 0:01:02]} Rxh4 {[%emt 0:00:06]} 103. Kf2 {[%emt 0:00:36]} Rh3 {[%emt 0:00:24]} 104. Rg5 {[%emt 0:00:29]} Rc3 {[%emt 0:00:22]} 105. Rxh5 {[%emt 0:00:32]} Rxc4 {[%emt 0:00:02]} 0-1

[Event "Bangabandhu Premier Div League 2023-24"]
[Site "Dhaka"]
[Date "2024.02.06"]
[Round "6.8"]
[White "Diya Chowdhury"]
[Black "Manon, Reja Neer"]
[Result "0-1"]
[ECO "C63"]
[WhiteElo "1881"]
[BlackElo "2169"]
[Annotator "TA"]
[PlyCount "80"]
[EventDate "2024.02.01"]
[EventCountry "BAN"]
[SourceTitle "playchess.com"]
[Source "ChessBase"]
[SourceQuality "1"]
[TimeControl "40/5400+30:1800+30"]

{[%evp 15,80,43,48,47,84,95,85,82,75,82,87,87,81,68,78,69,59,73,83,14,28,19,31,28,33,12,54,-38,-40,-139,-89,-79,-66,-121,-121,-124,-140,-131,-147,-139,-135,-148,-129,-133,-124,-602,-589,-29983,-29984,-29984,-29985,-29985,-29986,-29986,-29987,-29987,-29988,-29990,-587,-29990,-537,-29985,-29972,-7147,-6892,-29979,-29980]} 1. e4 {[%emt 0:00:10]} e5 {[%emt 0:00:13]} 2. Nf3 {[%emt 0:00:15]} Nc6 {[%emt 0:00:05]} 3. Bb5 {[%emt 0:00:18]} f5 {[%emt 0:00:07]} 4. d3 {[%emt 0:00:08]} fxe4 {[%emt 0:00:15]} 5. dxe4 {[%emt 0:00:14]} Nf6 {[%emt 0:00:05]} 6. O-O {[%emt 0:00:13]} d6 {[%emt 0:00:29]} 7. Nc3 {[%emt 0:00:42]} Be7 {[%emt 0:00:22]} 8. Qd3 {[%emt 0:00:12]} Bg4 {[%emt 0:07:52]} 9. Qc4 {[%emt 0:00:26]} Qd7 {[%emt 1:25:32]} 10. Ng5 {[%emt 1:32:52]} Bh5 {[%emt 0:00:30] Wards off Qf7+} 11. Nd5 {[%emt 0:00:30][%cal Og5e6] Ne6! would now be deadly. White is better.} (11. Ne6 $2 Bf7 12. Nxg7+ Kf8 $19) 11... a6 {[%emt 0:00:30]} 12. Bxc6 {[%emt 0:00:00]} bxc6 {[%emt 0:00:30]} 13. Nxe7 {[%emt 0:00:00]} Kxe7 {[%emt 0:00:30]} 14. f4 {[%emt 0:00:00] aiming for fxe5.} h6 {[%emt 0:00:00]} 15. Nf3 {[%emt 0:02:00]} Bxf3 $1 {[%emt 0:00:00]} 16. Rxf3 {[%emt 0:00:00]} d5 {[%emt 0:00:00]} 17. Qc3 {[%emt 0:01:00]} (17. exd5 $16 cxd5 18. Qc5+ Qd6 19. Qc3) 17... dxe4 $11 {[%emt 0:00:00]} 18. Qxe5+ {[%emt 0:00:00]} Kf7 {[%emt 0:00:00]} 19. Rf1 {[%emt 0:00:00]} Rhe8 {[%emt 0:00:00]} 20. Qc5 {[%emt 0:00:00]} Rab8 {[%emt 0:00:00]} 21. c4 {[%emt 0:02:00] White is weak on the light squares} ({White should try} 21. b3 $14) 21... Qd6 {[%emt 0:04:00]} (21... Qd3 {looks sharper.} 22. Re1 e3 23. b3 e2) 22. Qa7 {[%emt 0:00:30] [#]} (22. Qe3 $15) 22... c5 {[%emt 0:00:00]} (22... Ng4 $142 $1 23. Be3 (23. h3 $2 Ra8 $19) 23... Rxb2) 23. Be3 $17 {[%emt 0:00:00]} Rxb2 {[%emt 0:00:00] Hoping for ...Nd7.} 24. Bxc5 {[%emt 0:00:00] [#]} (24. Rfd1 $1 $15 Qb6 25. Bxc5 Qxa7 26. Bxa7) 24... Qc6 $1 {[%emt 0:00:00]} 25. Be3 {[%emt 0:00:00]} Rd8 {[%emt 0:02:00][%cal Of6g4] Inhibits Qd4.} (25... Qxc4 $2 26. Rac1 Qe6 (26... Rc2 $2 27. Rxc2 Qxc2 28. Rc1 $18) 27. f5 $18 (27. Rxc7+ Re7 $11) (27. Qxc7+ Kg8 $11)) 26. Rfb1 {[%emt 0:02:00]} Re2 {[%emt 0:00:30][%cal Od8d3] Threatens to win with ...Rd3! Black is much more active.} 27. Re1 {[%emt 0:00:30]} Rc2 {[%emt 0:00:00]} 28. Rec1 {[%emt 0:00:00]} Qxc4 {[%emt 0:00:00]} 29. Rxc2 {[%emt 0:00:00]} Qxc2 $40 {[%emt 0:00:00][%mdl 128] Black wants a kill.} 30. Rc1 $2 {[%emt 0:00:00][%mdl 8192] [#] This move loses the game for White.} (30. h3 $17) 30... Ng4 $1 $19 {[%emt 0:02:00] ( -> ...Rd1+)} 31. Re1 {[%emt 0:00:00]} (31. Qxc7+ Qxc7) 31... Rd1 {[%emt 0:00:00][%cal Rd1e1]} (31... Qxa2 $2 {loses.} 32. Qxc7+ Ke8 33. Bb6 $18 (33. Qxg7 Qa5 $11)) 32. Bf2 {[%emt 0:00:00]} Qc1 {[%emt 0:01:00]} 33. Kf1 {[%emt 0:01:33]} Nxh2+ {[%emt 0:00:00]} 34. Kg1 {[%emt 0:00:25]} Ng4 {[%emt 0:00:00]} 35. Kf1 {[%emt 0:00:09]} e3 {[%emt 0:00:00]} 36. Bg3 {[%emt 0:00:20]} Qc4+ {[%emt 0:00:41]} 37. Kg1 {[%emt 0:00:12]} Rd2 {[%emt 0:00:57]} (37... e2 $142 38. Qf2 Nxf2 39. Bxf2 Qc3 (39... Qxa2 {gets mated.} 40. Kh2 Qd2 41. g4 Rxe1 42. g5 Rf1 43. g6+ Kxg6 44. Kg3 Qc3+ 45. Kg2 Rxf2+ 46. Kxf2 e1=Q+ 47. Kg2 Qcg3#) (39... Rxe1+ 40. Bxe1 Qxf4 41. Bf2 Qc1+ 42. Kh2 Qf1 43. Bh4 g5 44. Bg3 h5 45. a4 a5 46. Be1 Qxe1 47. g3 Qf2+ 48. Kh3 e1=Q 49. g4 Qh1#) 40. Kh2 Rxe1 41. Bxe1 Qxe1 42. Kh3 Qc3+ (42... Qh1+ {is a self mate.} 43. Kg4 e1=Q 44. g3 Qe6+ 45. f5 Qee4#) 43. g3 e1=Q (43... e1=R 44. Kg4 h5+ 45. Kh3 Qf3 46. Kh4 Qg4#) 44. Kg4 Qexg3+ 45. Kh5 Qh3#) 38. Rxe3 {[%emt 0:01:30]} Nxe3 {[%emt 0:00:14]} 39. Qxe3 {[%emt 0:00:02]} Qc1+ {[%emt 0:00:13]} 40. Be1 {[%emt 0:00:58] [#]} Rxg2+ $3 {[%emt 0:00:06][%mdl 512] Weighted Error Value: White=0.86/Black=0.16 (very precise) .  Loses game:     	White=1     	---        Mistake:       	White=4     	Black=1      Inaccurate:     	White=2     	Black=2      OK:         	White=11    	Black=7      Best:        	White=3     	Black=5      Strong:       	---       	Black=2} 0-1